fUSD/lending_fUSD_20240804
["ID","MTS","AMOUNT","RATE_DAILY","PERIOD"]
[334124456,1722787859664,-500.0,0.00023013,9]
[334124457,1722787859674,-1479.48591412,0.00023013,9]
[334124458,1722787859686,-727.61408588,0.00023013,9]
[334124459,1722787859695,-500.0,0.00023013,9]
[334124460,1722787859705,-500.0,0.00023013,9]
[334124461,1722787859715,-173.82,0.00023013,9]
[334124462,1722787859724,-3879.17,0.00023013,9]
[334124463,1722787859734,-500.0,0.00023013,9]
[334124464,1722787859743,-500.0,0.00023013,9]
[334124465,1722787859753,-500.0,0.00023013,9]
[334124466,1722787859762,-500.0,0.00023013,9]
[334124467,1722787859772,-500.0,0.00023013,9]
[334124468,1722787859783,-1371.92,0.00023013,9]
[334124469,1722787859792,-151.0,0.00023013,7]
[334124470,1722787859802,-500.0,0.00023013,9]
[334124471,1722787859812,-500.0,0.00023013,9]
[334124472,1722787859821,-500.0,0.00023013,9]
[334124473,1722787859830,-1932.49,0.00023013,9]
[334124474,1722787859840,-1474.9,0.00023013,9]
[334124475,1722787859850,-500.0,0.00023013,9]
[334124476,1722787859859,-500.0,0.00023013,9]
[334124477,1722787859869,-1218.8,0.00023013,9]
[334124478,1722787859880,-501.0752116,0.00023013,9]
[334124479,1722787859889,-923.31,0.00023013,9]
[334124480,1722787859900,-502.61,0.00023013,9]
[334124481,1722787859910,-993.73,0.00023013,9]
[334124482,1722787859919,-1111.06,0.00023013,9]
[334124483,1722787859929,-500.0,0.00023013,9]
[334124484,1722787859938,-500.0,0.00023013,9]
[334124485,1722787859947,-500.0,0.00023013,9]
[334124486,1722787859957,-3226.95,0.00023013,9]
[334124487,1722787859967,-1379.08,0.00023013,9]
[334124488,1722787859987,-582.47070238,0.00023013,9]
[334124489,1722787860014,-263.16929762,0.00023013,9]
[334124490,1722787860024,-140.46418653,0.00023013,9]
[334124491,1722787860050,-13.44524447,0.00023013,9]
[334124492,1722787860060,-500.0,0.00023013,9]
[334124493,1722787860069,-177.15497753,0.00023013,7]
[334124494,1722787860081,-898.31109779,0.00023013,7]
[334124495,1722787860093,-406.90878468,0.00023013,7]
[334124496,1722787860103,-2377.61,0.00023013,9]
[334124497,1722787860113,-397.32,0.00023013,9]
[334124498,1722787860122,-201.92992748,0.00023073,2]
[334124499,1722787860132,-2248.44,0.00023093,9]
[334124500,1722787860142,-2087.76,0.00023094,9]
[334124501,1722787860151,-1373.03128784,0.00023094,9]
[334124502,1722787860177,-714.72871216,0.00023094,9]
[334124503,1722787860187,-2087.76,0.00023094,9]
[334124504,1722787860196,-1586.26625819,0.00023094,9]
[334124505,1722787860280,-501.49374181,0.00023094,9]
[334124506,1722787860290,-97.89401456,0.00023094,9]
[334124511,1722788456694,222.0,0.00025,60]
[334124512,1722788531310,-500.0,0.00025258,120]
[334124513,1722788531344,-748314.59201787,0.00027,120]
[334124514,1722788531369,-1451185.40798213,0.00027,120]
[334124515,1722788536266,-568240.59201787,0.00027,120]
[334124516,1722788536290,-2000.0,0.00027,120]
[334124517,1722788536316,-2900.0,0.00027,120]
[334124518,1722788536341,-1019023.02580579,0.00027,120]
[334124520,1722788593502,150.5,0.00023085,120]
[334124521,1722788593924,219.57,0.00023075,120]
[334124522,1722788595095,500.0,0.00025224,120]
[334124523,1722788595590,500.0,0.00025886,120]
[334124524,1722788596001,500.0,0.00026486,120]
[334124525,1722788596437,503.212228,0.00026999,120]
[334124526,1722788599631,1000.0,0.00025679,120]
[334124527,1722788600145,1000.0,0.00026783,120]
[334124528,1722788606351,500.0,0.00025397,120]
[334124529,1722788606747,507.866903,0.00026345,120]
[334124530,1722788609464,-181.15430097,0.000104,2]
[334124531,1722788609494,-400.2529,0.000105,2]
[334124532,1722788609518,-26308.59279903,0.000105,2]
[334124533,1722788614576,-1188.72553227,0.000105,2]
[334124534,1722788622086,500.0,0.00025679,120]
[334124535,1722788631512,316.0,0.00025221,120]
[334124536,1722788643964,200.0,0.00025886,120]
[334124537,1722788647704,800.0,0.00026986,120]
[334124538,1722788707526,800.0,0.00026986,120]
[334124539,1722788708950,23811.27446773,0.00011,2]
[334124540,1722788708979,25000.0,0.00011,2]
[334124541,1722788712722,150.5,0.00023085,120]
[334124542,1722788713229,225.66,0.00023085,120]
[334124543,1722788713273,291.5,0.00023075,120]
[334124544,1722788713404,150.5,0.00023085,120]
[334124545,1722788713946,150.5,0.00023085,120]
[334124546,1722788714030,150.71,0.00023075,120]
[334124547,1722788714415,150.5,0.00023075,120]
[334124548,1722788714900,150.5,0.00023065,120]
[334124553,1722788741964,2900.0,0.00027,120]
[334124557,1722788762962,150.0,0.00025,120]
[334124559,1722788792468,1000.0,0.00023013,60]
[334124560,1722788792735,1000.0,0.00023095,60]
[334124561,1722788792981,1000.0,0.00023178,60]
[334124562,1722788793250,1000.0,0.0002326,60]
[334124563,1722788793859,1000.0,0.00023342,60]
[334124564,1722788794136,768.16056565,0.00023424,60]
[334124586,1722788870142,491.19327112,0.000269,120]
[334124590,1722788888662,977.39488439,0.0002,90]
[334124592,1722788889439,800.0,0.00026904,120]
[334124618,1722788947923,800.0,0.00026904,120]
[334124661,1722789007963,800.0,0.00026904,120]
[334124692,1722789032086,-4057.0,0.00010781,2]
[334124694,1722789032098,-300.0,0.00010899,2]
[334124696,1722789032111,-600.73274452,0.000109,2]
[334124697,1722789032123,-1688.80322322,0.000109,2]
[334124698,1722789032173,-2100.0,0.000109,2]
[334124699,1722789032187,-12000.0,0.000109,2]
[334124700,1722789032200,-8749.74367397,0.000109,2]
[334124701,1722789032212,-193.64669933,0.000109,2]
[334124702,1722789032222,-896.5252629,0.000109,2]
[334124703,1722789032232,-151.02586015,0.000109,2]
[334124704,1722789032251,-153.05,0.0001099,2]
[334124705,1722789032260,-1030.49844899,0.00010998,2]
[334124706,1722789032270,-8892.03109507,0.00010999,2]
[334124707,1722789032280,-563.31632269,0.00010999,2]
[334124708,1722789032289,-34272.14563729,0.00011,2]
[334124734,1722789032799,-1180.74374656,0.00011,2]
[334124735,1722789032811,-5854.9058077,0.00011,2]
[334124736,1722789032823,-1891.96129736,0.00011,2]
[334124737,1722789032835,-2116.94139513,0.00011,2]
[334124738,1722789032927,-4281.9081366,0.00011,2]
[334124739,1722789032938,-423.56713528,0.00011,2]
[334124740,1722789032950,-1240.18337521,0.00011,2]
[334124741,1722789032961,-925.07724057,0.00011,2]
[334124753,1722789037473,-16561.04449965,0.00011,2]
[334124754,1722789037484,-5018.35712661,0.00011,2]
[334124755,1722789037497,-14010.95722399,0.00011,2]
[334124756,1722789037548,-7135.69665805,0.00011,2]
[334124757,1722789037560,-998.65019225,0.00011,2]
[334124758,1722789037574,-4842.68161654,0.00011,2]
[334124759,1722789037666,-6228.16074838,0.00011,2]
[334124760,1722789037677,-30504.29159966,0.00011,2]
[334124761,1722789037784,-1364.83123837,0.00011,2]
[334124762,1722789037795,-3713.47253654,0.00011,2]
[334124763,1722789037845,-29624.0,0.00011,2]
[334124764,1722789037858,-12253.96004506,0.00011,2]
[334124765,1722789037907,-36972.16394961,0.00011,2]
[334124766,1722789037973,-1632.3621893,0.00011,2]
[334124768,1722789037985,-2951.0,0.00011,2]
[334124790,1722789042377,-814.42952318,0.00011,2]
[334124793,1722789042389,-975.50742252,0.00011,2]
[334124796,1722789042402,-807.664508,0.00011,2]
[334124801,1722789042414,-1049.72034013,0.00011,2]
[334124805,1722789042425,-541.71068059,0.00011,2]
[334124808,1722789042436,-259.70936299,0.00011,2]
[334124814,1722789042464,-1476.1,0.00011,2]
[334124825,1722789042532,-33566.37654863,0.00011,2]
[334124827,1722789042546,-23449.34302178,0.00011,2]
[334124828,1722789042558,-118700.0,0.00011,2]
[334124829,1722789042570,-373.5132,0.00011,2]
[334124830,1722789042582,-775.1703946,0.00011,2]
[334124831,1722789042606,-511.41496135,0.00011,2]
[334124832,1722789042617,-362.76485203,0.00011,2]
[334124833,1722789042629,-4091.22612,0.00011,2]
[334124834,1722789042640,-957.39475018,0.00011,2]
[334124835,1722789042652,-357.51772213,0.00011,2]
[334124836,1722789042664,-3258.36262587,0.00011,2]
[334124837,1722789042684,-485.3980518,0.00011,2]
[334124838,1722789042695,-5759.89368103,0.00011,2]
[334124839,1722789042707,-13229.35914712,0.00011,2]
[334124840,1722789042718,-2437.39358701,0.00011,2]
[334124841,1722789042730,-13595.7235,0.00011,2]
[334124842,1722789042744,-13594.94689997,0.00011,2]
[334124843,1722789042759,-412.39,0.00011,2]
[334124844,1722789042771,-2844.18721413,0.00011,2]
[334124845,1722789042782,-15595.8306738,0.00011,2]
[334124846,1722789042794,-2000.00029,0.00011,2]
[334124847,1722789042805,-47414.1199,0.00011,2]
[334124848,1722789042817,-1129.10829927,0.00011,2]
[334124850,1722789042829,-717.96050193,0.00011,2]
[334124852,1722789042840,-957.49702468,0.00011,2]
[334124854,1722789042852,-308.94361421,0.00011,2]
[334124859,1722789042894,-2179.86755184,0.00011,2]
[334124861,1722789042906,-8843.83246956,0.00011,2]
[334124924,1722789043572,-7785.53683929,0.00011,2]
[334124926,1722789043584,-28250.9371,0.00011,2]
[334124929,1722789043596,-89127.68499051,0.00011,2]
[334124931,1722789043608,-5902.21527563,0.00011,2]
[334124980,1722789044067,-4737.26219031,0.00011,2]
[334124982,1722789044078,-470.89476816,0.00011,2]
[334125098,1722789045772,-3782.66064782,0.00011,2]
[334125159,1722789064925,-2006842.57161299,0.00011,2]
[334125160,1722789064934,-165881.37808806,0.00011,2]
[334125161,1722789064944,-4103.05217891,0.00011105,2]
[334125162,1722789064954,-3330.2101425,0.0001236,2]
[334125163,1722789064964,-2500.85158559,0.0001236,2]
[334125164,1722789064974,-24538.5468971,0.00012391,2]
[334125165,1722789064984,-155.01924562,0.00012391,2]
[334125166,1722789064999,-155.0,0.00012391,2]
[334125167,1722789065021,-301754.99540148,0.0001297,7]
[334125168,1722789065038,-38771.3907121,0.000138,2]
[334125169,1722789065048,-24538.5468971,0.00013882,2]
[334125170,1722789065059,-314823.078235,0.000139,2]
[334125171,1722789065069,-183.86,0.00013973,2]
[334125172,1722789065080,-228.99,0.00013973,2]
[334125173,1722789065090,-636.88048517,0.000144,2]
[334125174,1722789065100,-2000.0,0.00014829,2]
[334125175,1722789065110,-250.0,0.00015357,2]
[334125176,1722789065120,-24538.5468971,0.00015373,2]
[334125177,1722789065130,-150.0,0.00015583,2]
[334125178,1722789065140,-904.0,0.000157,2]
[334125179,1722789065151,-999.99,0.000157,2]
[334125180,1722789065161,-239.19,0.00016286,2]
[334125181,1722789065175,-65046.181541,0.00016711,2]
[334125182,1722789065185,-6025.85,0.000168,2]
[334125183,1722789065196,-24538.5468971,0.00016864,2]
[334125184,1722789065206,-3000.0,0.00017,2]
[334125185,1722789065216,-511.62,0.00017,2]
[334125186,1722789065225,-896.5252629,0.00017359,2]
[334125187,1722789065235,-316.0,0.00018343,2]
[334125188,1722789065246,-24538.5468971,0.00018356,2]
[334125189,1722789065257,-21495.54,0.00018452,2]
[334125190,1722789065273,-397.79,0.00018459,2]
[334125191,1722789065287,-250.0,0.00018486,2]
[334125192,1722789065297,-239.19,0.00018549,2]
[334125193,1722789065306,-583.17,0.00019542,2]
[334125194,1722789065317,-155.0,0.00019599,2]
[334125195,1722789065327,-3000.0,0.000197,2]
[334125196,1722789065337,-6025.85,0.000197,2]
[334125197,1722789065347,-24538.5468971,0.00019847,2]
[334125198,1722789065357,-522.42518221,0.00019899,2]
[334125199,1722789065368,-228.99,0.00020447,2]
[334125200,1722789065378,-209.99,0.00020547,2]
[334125201,1722789065388,-316.0,0.00020635,2]
[334125202,1722789065398,-150.0,0.00020762,2]
[334125203,1722789065408,-239.19,0.00020813,2]
[334125204,1722789065419,-24538.5468971,0.00021338,2]
[334125205,1722789065430,-164.81,0.00021589,30]
[334125206,1722789065441,-583.17,0.00021985,2]
[334125207,1722789065451,-194994.55721267,0.00022,2]
[334125208,1722789065462,-6025.85,0.000222,7]
[334125209,1722789065473,-3000.0,0.000225,2]
[334125210,1722789065483,-1893.0,0.00022829,2]
[334125211,1722789065493,-150.0,0.00022829,2]
[334125212,1722789065503,-550.0,0.00022829,2]
[334125213,1722789065520,-1370.0,0.00022829,2]
[334125214,1722789065530,-3288.0,0.00022829,2]
[334125215,1722789065540,-1075.0,0.00022829,2]
[334125216,1722789065550,-1582.0,0.00022829,2]
[334125217,1722789065559,-5836.0,0.00022829,2]
[334125218,1722789065569,-5128.0,0.00022829,2]
[334125219,1722789065579,-1203.0,0.00022829,2]
[334125220,1722789065589,-21734.0,0.00022829,2]
[334125221,1722789065600,-621.0,0.00022829,2]
[334125222,1722789065610,-1925.0,0.00022829,2]
[334125223,1722789065620,-24538.5468971,0.00022829,2]
[334125224,1722789065630,-7500.0,0.00022885,2]
[334125225,1722789065640,-1131.0,0.000229,2]
[334125226,1722789065649,-179.62485198,0.00022912,2]
[334125227,1722789065659,-192.67548378,0.00022912,2]
[334125228,1722789065669,-316.0,0.00022928,2]
[334125229,1722789065679,-153.05,0.00022985,2]
[334125230,1722789065689,-1000.0,0.00022992,2]
[334125231,1722789065698,-500.0,0.00022992,2]
[334125232,1722789065708,-200.0,0.00022992,2]
[334125233,1722789065718,-500.0,0.00022992,2]
[334125234,1722789065728,-200.0,0.00022992,2]
[334125235,1722789065738,-500.0,0.00022992,2]
[334125236,1722789065747,-200.0,0.00022992,2]
[334125237,1722789065759,-500.0,0.00022992,2]
[334125238,1722789065776,-500.0,0.00022993,2]
[334125239,1722789065787,-1000.0,0.00022993,2]
[334125240,1722789065797,-1000.0,0.00022993,2]
[334125241,1722789065807,-500.0,0.00022993,2]
[334125242,1722789065817,-500.0,0.00022993,2]
[334125243,1722789065827,-500.0,0.00022993,2]
[334125244,1722789065837,-500.0,0.00022993,2]
[334125245,1722789065847,-200.0,0.00022993,2]
[334125246,1722789065857,-200.0,0.00022993,2]
[334125247,1722789065867,-200.0,0.00022993,2]
[334125248,1722789065876,-327.7391,0.00022995,2]
[334125249,1722789065886,-31398.3956,0.00022995,2]
[334125250,1722789065896,-71864.4392,0.00022995,2]
[334125251,1722789065905,-3363.4054,0.00022995,2]
[334125252,1722789065915,-2000.0,0.00022995,2]
[334125253,1722789065925,-500.0,0.00022995,2]
[334125254,1722789065936,-245000.0,0.00022995,2]
[334125255,1722789065946,-151.0,0.00022995,7]
[334125256,1722789065956,-151.0,0.00022995,7]
[334125257,1722789065966,-151.0,0.00022995,7]
[334125258,1722789065976,-1000.0,0.00022995,2]
[334125259,1722789065986,-10000.0,0.00022995,2]
[334125260,1722789065996,-200.0,0.00023,2]
[334125261,1722789066005,-872.0,0.00023013,2]
[334125262,1722789066023,-500.0,0.00023013,9]
[334125263,1722789066033,-500.0,0.00023013,9]
[334125264,1722789066043,-247.99315908,0.00023013,9]
[334125265,1722789066053,-500.0,0.00023013,9]
[334125266,1722789066063,-500.0,0.00023013,9]
[334125267,1722789066073,-341.64105827,0.00023013,9]
[334125268,1722789066082,-500.0,0.00023013,9]
[334125269,1722789066092,-500.0,0.00023013,9]
[334125270,1722789066102,-500.0,0.00023013,9]
[334125271,1722789066111,-500.0,0.00023013,9]
[334125272,1722789066121,-500.0,0.00023013,9]
[334125273,1722789066131,-507.8090967,0.00023013,9]
[334125274,1722789066141,-500.0,0.00023013,9]
[334125275,1722789066157,-500.0,0.00023013,9]
[334125276,1722789066171,-500.0,0.00023013,9]
[334125277,1722789066181,-508.66664787,0.00023013,9]
[334125278,1722789066191,-500.0,0.00023013,9]
[334125279,1722789066201,-500.0,0.00023013,9]
[334125280,1722789066212,-511.92583043,0.00023013,9]
[334125281,1722789066221,-500.0,0.00023013,9]
[334125282,1722789066231,-500.0,0.00023013,9]
[334125283,1722789066241,-500.0,0.00023013,9]
[334125284,1722789066251,-500.0,0.00023013,9]
[334125285,1722789066265,-500.0,0.00023013,9]
[334125286,1722789066276,-500.0,0.00023013,9]
[334125287,1722789066286,-500.0,0.00023013,9]
[334125288,1722789066297,-514.88697216,0.00023013,9]
[334125289,1722789066307,-500.0,0.00023013,9]
[334125290,1722789066318,-500.0,0.00023013,9]
[334125291,1722789066328,-300.0,0.00023013,9]
[334125292,1722789066338,-500.0,0.00023013,9]
[334125293,1722789066349,-500.0,0.00023013,9]
[334125294,1722789066358,-500.0,0.00023013,9]
[334125295,1722789066368,-301.97612861,0.00023013,9]
[334125296,1722789066379,-500.0,0.00023013,9]
[334125297,1722789066388,-500.0,0.00023013,9]
[334125298,1722789066399,-500.0,0.00023013,9]
[334125299,1722789066409,-500.0,0.00023013,9]
[334125300,1722789066419,-500.0,0.00023013,9]
[334125301,1722789066430,-500.0,0.00023013,9]
[334125302,1722789066441,-500.0,0.00023013,9]
[334125303,1722789066451,-500.0,0.00023013,9]
[334125304,1722789066461,-500.0,0.00023013,9]
[334125305,1722789066471,-500.0,0.00023013,9]
[334125306,1722789066481,-500.0,0.00023013,9]
[334125307,1722789066491,-500.0,0.00023013,9]
[334125308,1722789066501,-500.0,0.00023013,9]
[334125309,1722789066513,-501.96021965,0.00023013,9]
[334125310,1722789066523,-500.0,0.00023013,9]
[334125311,1722789066534,-500.0,0.00023013,9]
[334125312,1722789066543,-500.0,0.00023013,9]
[334125313,1722789066554,-500.0,0.00023013,9]
[334125314,1722789066564,-500.0,0.00023013,9]
[334125315,1722789066574,-500.0,0.00023013,9]
[334125316,1722789066585,-500.0,0.00023013,9]
[334125317,1722789066595,-500.0,0.00023013,9]
[334125318,1722789066605,-500.0,0.00023013,9]
[334125319,1722789066616,-500.0,0.00023013,9]
[334125320,1722789066626,-500.0,0.00023013,9]
[334125321,1722789066636,-500.0,0.00023013,9]
[334125322,1722789066647,-500.0,0.00023013,9]
[334125323,1722789066657,-500.0,0.00023013,9]
[334125324,1722789066667,-500.0,0.00023013,9]
[334125325,1722789066678,-500.0,0.00023013,9]
[334125326,1722789066688,-535.73351223,0.00023013,9]
[334125327,1722789066698,-500.0,0.00023013,9]
[334125328,1722789066708,-500.0,0.00023013,9]
[334125329,1722789066718,-500.0,0.00023013,9]
[334125330,1722789066728,-500.0,0.00023013,9]
[334125331,1722789066739,-156.36,0.00023013,9]
[334125332,1722789066749,-500.0,0.00023013,9]
[334125333,1722789066762,-500.0,0.00023013,9]
[334125334,1722789066773,-500.0,0.00023013,9]
[334125335,1722789066784,-500.0,0.00023013,9]
[334125336,1722789066794,-500.0,0.00023013,9]
[334125337,1722789066805,-500.0,0.00023013,9]
[334125338,1722789066816,-500.0,0.00023013,9]
[334125339,1722789066826,-171.09,0.00023013,9]
[334125340,1722789066836,-500.0,0.00023013,9]
[334125341,1722789066847,-220.14,0.00023013,9]
[334125342,1722789066858,-500.0,0.00023013,9]
[334125343,1722789066869,-500.0,0.00023013,9]
[334125344,1722789066879,-396.31,0.00023013,9]
[334125345,1722789066890,-500.0,0.00023013,9]
[334125346,1722789066900,-500.0,0.00023013,9]
[334125347,1722789066910,-500.0,0.00023013,9]
[334125348,1722789066920,-500.0,0.00023013,9]
[334125349,1722789066931,-500.0,0.00023013,9]
[334125350,1722789067175,-500.0,0.00023013,9]
[334125351,1722789067185,-500.0,0.00023013,9]
[334125352,1722789067198,-500.0,0.00023013,9]
[334125353,1722789067209,-362.66,0.00023013,9]
[334125354,1722789067219,-511.84,0.00023013,9]
[334125355,1722789067229,-500.0,0.00023013,9]
[334125356,1722789067239,-500.0,0.00023013,9]
[334125357,1722789067250,-500.0,0.00023013,9]
[334125358,1722789067265,-500.0,0.00023013,9]
[334125359,1722789067276,-500.0,0.00023013,9]
[334125360,1722789067286,-500.0,0.00023013,9]
[334125361,1722789067297,-500.0,0.00023013,9]
[334125362,1722789067308,-500.0,0.00023013,9]
[334125363,1722789067318,-500.0,0.00023013,9]
[334125364,1722789067329,-500.0,0.00023013,9]
[334125365,1722789067339,-500.0,0.00023013,9]
[334125366,1722789067349,-500.0,0.00023013,9]
[334125367,1722789067360,-412.0,0.00023013,9]
[334125368,1722789067371,-500.0,0.00023013,9]
[334125369,1722789067382,-422.41,0.00023013,9]
[334125370,1722789067392,-500.0,0.00023013,9]
[334125371,1722789067402,-500.0,0.00023013,9]
[334125372,1722789067412,-500.0,0.00023013,9]
[334125373,1722789067422,-500.0,0.00023013,9]
[334125374,1722789067432,-500.0,0.00023013,9]
[334125375,1722789067442,-500.0,0.00023013,9]
[334125376,1722789067452,-616.33759455,0.00023013,9]
[334125377,1722789067462,-500.0,0.00023013,9]
[334125378,1722789067471,-500.0,0.00023013,9]
[334125379,1722789067481,-500.0,0.00023013,9]
[334125380,1722789067491,-500.0,0.00023013,9]
[334125381,1722789067501,-500.0,0.00023013,9]
[334125382,1722789067515,-500.0,0.00023013,9]
[334125383,1722789067525,-500.0,0.00023013,9]
[334125384,1722789067535,-500.0,0.00023013,9]
[334125385,1722789067544,-500.0,0.00023013,9]
[334125386,1722789067554,-500.0,0.00023013,9]
[334125387,1722789067563,-500.0,0.00023013,9]
[334125388,1722789067573,-500.0,0.00023013,9]
[334125389,1722789067582,-500.0,0.00023013,9]
[334125390,1722789067592,-500.0,0.00023013,9]
[334125391,1722789067602,-502.85598255,0.00023013,9]
[334125392,1722789067611,-500.0,0.00023013,9]
[334125393,1722789067622,-500.0,0.00023013,9]
[334125394,1722789067632,-500.0,0.00023013,9]
[334125395,1722789067642,-500.0,0.00023013,9]
[334125396,1722789067651,-500.0,0.00023013,9]
[334125397,1722789067661,-502.62,0.00023013,9]
[334125398,1722789067670,-500.0,0.00023013,9]
[334125399,1722789067680,-277.06,0.00023013,9]
[334125400,1722789067689,-194.34029935,0.00023013,9]
[334125401,1722789067698,-500.0,0.00023013,9]
[334125402,1722789067708,-500.0,0.00023013,9]
[334125403,1722789067717,-500.0,0.00023013,9]
[334125404,1722789067727,-500.0,0.00023013,9]
[334125405,1722789067737,-500.97705085,0.00023013,9]
[334125406,1722789067746,-500.0,0.00023013,9]
[334125407,1722789067755,-500.0,0.00023013,9]
[334125408,1722789067772,-500.0,0.00023013,9]
[334125409,1722789067782,-500.0,0.00023013,9]
[334125410,1722789067791,-500.0,0.00023013,9]
[334125411,1722789067800,-500.0,0.00023013,9]
[334125412,1722789067810,-500.0,0.00023013,9]
[334125413,1722789067819,-500.0,0.00023013,9]
[334125414,1722789067829,-500.0,0.00023013,9]
[334125415,1722789067838,-500.0,0.00023013,9]
[334125416,1722789067848,-500.0,0.00023013,9]
[334125417,1722789067858,-500.0,0.00023013,9]
[334125418,1722789067867,-500.0,0.00023013,9]
[334125419,1722789067876,-500.0,0.00023013,9]
[334125420,1722789067886,-956.89,0.00023013,9]
[334125421,1722789067895,-956.89,0.00023013,9]
[334125422,1722789067905,-956.89,0.00023013,9]
[334125423,1722789067915,-730.08,0.00023013,9]
[334125424,1722789067924,-500.0,0.00023013,9]
[334125425,1722789067933,-500.0,0.00023013,9]
[334125426,1722789067943,-500.0,0.00023013,9]
[334125427,1722789067952,-500.0,0.00023013,9]
[334125428,1722789067962,-419.26,0.00023013,9]
[334125429,1722789067971,-500.0,0.00023013,9]
[334125430,1722789067981,-500.0,0.00023013,9]
[334125431,1722789067990,-500.0,0.00023013,9]
[334125432,1722789067999,-500.0,0.00023013,9]
[334125433,1722789068012,-500.0,0.00023013,9]
[334125434,1722789068020,-500.0,0.00023013,9]
[334125435,1722789068030,-500.0,0.00023013,9]
[334125436,1722789068039,-500.0,0.00023013,9]
[334125437,1722789068049,-500.0,0.00023013,9]
[334125438,1722789068059,-588.86,0.00023013,9]
[334125439,1722789068068,-500.0,0.00023013,9]
[334125440,1722789068078,-500.0,0.00023013,9]
[334125441,1722789068088,-500.0,0.00023013,9]
[334125442,1722789068097,-500.0,0.00023013,9]
[334125443,1722789068106,-500.0,0.00023013,9]
[334125444,1722789068115,-500.0,0.00023013,9]
[334125445,1722789068125,-500.0,0.00023013,9]
[334125446,1722789068135,-501.58960127,0.00023013,9]
[334125447,1722789068144,-311.92737833,0.00023013,9]
[334125448,1722789068155,-500.0,0.00023013,9]
[334125449,1722789068165,-850.72,0.00023013,9]
[334125450,1722789068178,-500.0,0.00023013,9]
[334125451,1722789068187,-500.0,0.00023013,9]
[334125452,1722789068201,-760.21,0.00023013,9]
[334125453,1722789068210,-500.0,0.00023013,9]
[334125454,1722789068220,-501.35712346,0.00023013,2]
[334125455,1722789068230,-626.04,0.00023013,9]
[334125456,1722789068239,-500.0,0.00023013,9]
[334125457,1722789068250,-500.0,0.00023013,9]
[334125458,1722789068264,-500.0,0.00023013,9]
[334125459,1722789068274,-500.0,0.00023013,9]
[334125460,1722789068283,-500.0,0.00023013,9]
[334125461,1722789068293,-500.0,0.00023013,9]
[334125462,1722789068303,-500.0,0.00023013,9]
[334125463,1722789068312,-500.0,0.00023013,9]
[334125464,1722789068322,-500.0,0.00023013,9]
[334125465,1722789068331,-500.0,0.00023013,9]
[334125466,1722789068341,-500.0,0.00023013,9]
[334125467,1722789068351,-561.46,0.00023013,9]
[334125468,1722789068360,-500.0,0.00023013,9]
[334125469,1722789068370,-500.0,0.00023013,9]
[334125470,1722789068381,-500.0,0.00023013,9]
[334125471,1722789068390,-500.0,0.00023013,9]
[334125472,1722789068400,-500.0,0.00023013,9]
[334125473,1722789068409,-200.0,0.00023013,7]
[334125474,1722789068419,-500.0,0.00023013,9]
[334125475,1722789068428,-500.0,0.00023013,9]
[334125476,1722789068438,-500.0,0.00023013,9]
[334125477,1722789068447,-501.56353358,0.00023013,9]